[Event "FIDE Womens Grand Prix-I 2022-23"]
[Site "Nur-Sultan"]
[Date "2022.09.20"]
[Round "3.4"]
[White "Tan, Zhongyi"]
[Black "Kosteniuk, Alexandra"]
[Result "0-1"]
[ECO "C89"]
[WhiteElo "2525"]
[BlackElo "2521"]
[Annotator "TA"]
[PlyCount "126"]
[EventDate "2022.09.15"]
[EventType "tourn"]
[EventCountry "KAZ"]
[SourceTitle "playchess.com"]
[Source "ChessBase"]
[SourceQuality "1"]
[TimeControl "40/5400+30:1800+30"]

{[%evp 22,126,44,47,44,41,49,54,58,31,67,84,103,62,60,65,64,47,48,58,53,50,43,43,37,47,38,52,45,48,49,61,72,60,64,43,45,0,0,0,0,0,0,-5,20,-22,-13,-16,-9,-18,-12,-16,-9,-50,-41,-45,-46,-73,-64,-304,-302,-261,-147,-147,-149,-155,-154,-140,-145,-286,-293,-361,-356,-708,-580,-591,-589,-583,-580,-427,-257,-200,0,-90,-102,-217,-210,-219,-180,-212,-138,-552,-515,-29966,-29968,-29949,0,-6256,-5093,-29975,-29972,-6323,-6179,-29992,-29985,-29993,-29994]} 1. e4 {[%emt 0:00:04]} e5 {[%emt 0:00:05]} 2. Nf3 {[%emt 0:00:07]} Nc6 {[%emt 0:00:02]} 3. Bb5 {[%emt 0:00:10]} a6 {[%emt 0:00:04]} 4. Ba4 {[%emt 0:00:08]} Nf6 {[%emt 0:00:04]} 5. O-O {[%emt 0:00:12]} Be7 {[%emt 0:00:08]} 6. Re1 {[%emt 0:00:12]} b5 {[%emt 0:00:04]} 7. Bb3 {[%emt 0:00:05]} O-O {[%emt 0:00:04]} 8. c3 {[%emt 0:00:09]} d5 {[%emt 0:05:13]} 9. exd5 {[%emt 0:00:08]} Nxd5 {[%emt 0:00:03]} 10. Nxe5 {[%emt 0:00:10]} Nxe5 {[%emt 0:00:03]} 11. Rxe5 {[%emt 0:00:10]} Bb7 {[%emt 0:00:06]} 12. d4 {[%emt 0:01:36] EASY} Bf6 {[%emt 0:00:30] CPLX 2.5. C89: Closed Ruy Lopez: Marshall Attack.} 13. Re1 {[%emt 0:00:45] CPLX 2.7} Qd6 {[%emt 0:03:25] BESTDEEP} 14. Nd2 {[%emt 0:03:43] CPLX 2.7} Rae8 {[%emt 0:04:56] CPLX 2.5 4 (Rf8-e8) (=1). White is slightly better.} 15. Bc2 {[%emt 0:02:31] CPLX 2.8 27 (Nd2-f3) (=7)} Rxe1+ {[%emt 0:00:20] CPLX 2.8 36 (c7-c5) (=10)} 16. Qxe1 {[%emt 0:00:10] RECAPT} Qc6 {[%emt 0:00:26][%cal Od5c3] [#] BESTDEEP} 17. Nf3 $146 {[%emt 0:12:14] CPLX 2.2 41 (Bc2-e4) (=11)} ({Predecessor:} 17. Be4 Re8 18. Qf1 Qb6 19. Bf3 c5 20. c4 bxc4 21. Nxc4 Qc7 22. dxc5 Qxc5 23. Bd2 {1-0 (44) Janous,P (2345)-Tamburro,P ICCF email 2010}) 17... Re8 {[%emt 0:05:43] EASY} 18. Qd1 {[%emt 0:01:09] BESTDEEP} Qd6 {[%emt 0:10:46] BESTDEEP} 19. Bd3 {[%emt 0:03:28] CPLX 2.4 17 (Bc1-d2) (=11)} c5 {[%emt 0:09:27] CPLX 2.4} 20. dxc5 {[%emt 0:07:58] CPLX 2.7} Qxc5 {[%emt 0:03:02] RECAPT} 21. Bd2 {[%emt 0:00:23] CPLX 2.7} g6 {[%emt 0:03:17] CPLX 2.7 0 (Bf6-d8) (=4)} 22. Rc1 {[%emt 0:02:38] CPLX 2.5 0 (a2-a3) (=8)} Qd6 {[%emt 0:03:54] CPLX 2.5} 23. Bf1 {[%emt 0:00:16] CPLX 2.2 0 (Bd2-h6) (=7)} Rd8 {[%emt 0:10:48] CPLX 2.1 0 (Nd5-e7) (=3)} 24. Bh6 {[%emt 0:06:25] CPLX 2.0} Qc7 {[%emt 0:02:24][%cal Od5e3] CPLX 2.2 0 (Qd6-b8) (=3)} 25. Qe1 {[%emt 0:02:04] Against Ne3. BESTDEEP} Nf4 {[%emt 0:01:49] CPLX 2.2} 26. Nd4 {[%emt 0:02:39] CPLX 2.8} Qd6 {[%emt 0:10:21] CPLX 2.9 11 (Nf4-h5) (=3)} 27. Qe3 {[%emt 0:02:18] CPLX 2.9} Nd5 {[%emt 0:02:12] CPLX 3.0 4 (Bf6xd4) (=3)} 28. Qe2 {[%emt 0:03:04] CPLX 2.8 21 (Qe3-d2) (=6)} Be5 {[%emt 0:04:11] BESTDEEP} 29. Re1 {[%emt 0:07:55] CPLX 2.6 45 (h2-h3) (=8)} Bxh2+ {[%emt 0:02:43] EASY} 30. Kh1 {[%emt 0:00:11][%cal Oe2e8] LEGAL} Qb8 {[%emt 0:00:08] CPLX 3.3 0 (Nd5-f6) (=3)} 31. Bg5 {[%emt 0:18:47] CPLX 3.4} Rc8 {[%emt 0:01:09] CPLX 3.3} 32. Qg4 {[%emt 0:00:36][%cal Oa2a4] CPLX 3.1 5 (a2-a3) (=7)} Be5 {[%emt 0:02:29] CPLX 3.3 25 (Bh2-d6) (=4)} 33. Bd3 {[%emt 0:07:29] CPLX 2.9 42 (a2-a4) (=9)} (33. a4 $5) 33... Re8 {[%emt 0:02:14] CPLX 2.9 9 (Be5-g7) (=4)} 34. Re2 {[%emt 0:05:26] CPLX 3.0 3 (Qg4-h4) (=9)} h5 {[%emt 0:06:15] CPLX 2.9 7 (Be5-g7) (=4)} 35. Qd7 {[%emt 0:02:26] [#] And now Be4 would win. CPLX 3.3 9 (Qg4-h4) (=9)} Nb6 {[%emt 0:00:42] EASY} 36. Qh3 {[%emt 0:00:06] EASY} Bd6 {[%emt 0:01:38] CPLX 3.2} 37. f4 {[%emt 0:02:01] CPLX 3.0 41 (b2-b3) (=10)} Rxe2 {[%emt 0:04:29] CPLX 2.9 9 (Nb6-a4) (=4)} 38. Nxe2 {[%emt 0:00:05][%cal Od3g6] Hoping for Bxg6! RECAPT} Qc8 {[%emt 0:01:31] BESTDEEP} 39. f5 {[%emt 0:01:03] CPLX 2.5 27 (Qh3xc8) (=10)} Nc4 $40 {[%emt 0:00:14][%mdl 128] White needs to defend precisely. CPLX 2.7 9 (Nb6-a4) (=4)} 40. Bxc4 {[%emt 0:03:54] MISSDEEP-Bg5-f4 240 (Bg5-f4) (=18)} ({Better is} 40. Bf4 $1 $15) 40... Qxc4 $19 {[%emt 0:00:36] RECAPT} (40... bxc4 41. Bf4 Bc5 42. Nd4 $17) 41. Ng1 {[%emt 0:08:09] EASY} Qd5 {[%emt 0:04:44] CPLX 2.8 114 (Kg8-g7) (=8)} (41... Qxa2 42. fxg6 Qe6 43. gxf7+ Qxf7 44. Be3 $15) (41... Kg7 $19 {Strongly threatening ...f6.} 42. Be3 Qf1 43. Bd4+ f6 44. fxg6 Kxg6) 42. Bf6 $17 {[%emt 0:04:15] CPLX 3.1=>BLUNDERREACT} gxf5 {[%emt 0:00:55] aiming for ...Qd2. Black is more active. CPLX 3.6} ({Stronger than} 42... Qxa2 43. fxg6 Qe6 44. Qxe6 fxe6 45. Nf3 $17) 43. Qf3 {[%emt 0:08:43] CPLX 3.6} Qe4 {[%emt 0:01:09] CPLX 3.5} 44. Qf2 {[%emt 0:01:08] CPLX 3.7} Kh7 {[%emt 0:04:01] BESTDEEP} 45. b3 {[%emt 0:01:48] CPLX 4.0 141 (Ng1-f3) (=19)} (45. Nf3 $17 Kg6 46. Bh4) 45... Kg6 $19 {[%emt 0:03:07] CPLX 4.0=>BLUNDERREACT} 46. Bd4 {[%emt 0:00:07] CPLX 4.6 68 (Bf6-h4) (=21)} h4 {[%emt 0:00:45] CPLX 4.4} 47. Nf3 $2 {[%emt 0:06:45] CPLX 4.5 352 (Qf2-f3) (=30)} (47. Qf3) 47... Bg3 {[%emt 0:01:42] This bishop pair is nice. CPLX 4.6 128 (h4-h3) (=10)} 48. Qd2 {[%emt 0:02:31] Intending Qg5+ and mate. CPLX 4.6 11 (Qf2-e3) (=29)} f6 {[%emt 0:08:17][%cal Oh4h3] Inhibits Qg5+. CPLX 4.6 2 (f5-f4) (=10)} 49. Bf2 {[%emt 0:01:12] BESTDEEP} Bxf2 {[%emt 0:06:46] BESTDEEP} ({And not} 49... Qb1+ 50. Qe1 Qxe1+ 51. Bxe1 $17) 50. Qxf2 {[%emt 0:00:06][%mdl 4096] Endgame KQB-KQN. RECAPT} Kh5 {[%emt 0:00:07][%cal Oh4h3] ...h3! is the strong threat. CPLX 2.7 170 (h4-h3) (=14)} 51. Nd4 {[%emt 0:04:10] CPLX 2.8 0 (Nf3-d2) (=27)} Kg6 {[%emt 0:01:21] CPLX 3.4 200 (h4-h3) (=18)} (51... h3 $1 $19 {[%cal Rh3g2]} 52. Qf3+ Qxf3 53. gxf3 Kg5 54. Ne6+ Kh4) 52. Kh2 {[%emt 0:00:22] RELBLUND 90 (Nd4-f3) (=29)} (52. Nf3 $1 $11) 52... Bd5 $17 {[%emt 0:00:45] CPLX 3.4} 53. Ne2 {[%emt 0:01:22] CPLX 3.4 115 (Qf2-d2) (=31)} (53. Qd2 $17 {was called for.}) 53... Kg5 $19 {[%emt 0:00:24] CPLX 3.0=>BLUNDERREACT} 54. Nd4 {[%emt 0:00:40] CPLX 3.9 9 (Kh2-g1) (=30)} Kg4 {[%emt 0:02:45] CPLX 4.7 39 (Qe4-f4) (=18)} 55. Kg1 {[%emt 0:00:46][%cal Oc3c4] CPLX 4.9 32 (c3-c4) (=30)} f4 {[%emt 0:00:49] White must now prevent ...Qb1+. CPLX 4.6 74 (Qe4-b1) (=19)} 56. Kh2 $2 {[%emt 0:00:15][%mdl 8192] MISSDEEP-Qf2-f1 400 (Qf2-f1) (=39)} (56. Qf1 $17 {was the crucial defense.}) 56... Qe3 {[%emt 0:00:15] BESTDEEP} 57. Qc2 {[%emt 0:00:32] [#] RELBLUND 400 (Qf2-f1) (=46)} (57. Qf1 $19 Qg3+ 58. Kg1) 57... Qg3+ $1 {[%emt 0:00:30] DEEPSTRONG=>BLUNDERREACT} ({Weaker is} 57... Be4 58. Qd1+ Kg5 59. Nf3+ Bxf3 60. Qxf3 $15) 58. Kg1 {[%emt 0:00:12] RELBLUND} Qe1+ {[%emt 0:00:03] EASY} 59. Kh2 {[%emt 0:00:04][%csl Gd4][%cal Rc2f5] LEGAL} Be4 {[%emt 0:00:15] Against Qf5+. EASY} 60. Qb2 {[%emt 0:00:31] MISS-Qc2-e2 400 (Qc2-e2) (=52)} Qg3+ {[%emt 0:00:23] CPLX 4.5 3 (h4-h3) (=17)} 61. Kg1 {[%emt 0:00:04] RELBLUND} f3 {[%emt 0:01:44][%cal Bf4f3,Bf3f2][%mdl 32] CPLX 5.0} 62. c4 {[%emt 0:00:04] MISSDEEP-Nd4xf3 400 (Nd4xf3) (=58)} Qe1+ {[%emt 0:00:17] EASY} 63. Kh2 {[%emt 0:00:06] LEGAL} f2 {[%emt 0:00:42] Weighted Error Value: White=0.69/Black=0.20 (precise)} 0-1

[Event "FIDE Womens Grand Prix-I 2022-23"]
[Site "Nur-Sultan"]
[Date "2022.09.20"]
[Round "3.5"]
[White "Wagner, Dinara"]
[Black "Abdumalik, Zhansaya"]
[Result "1/2-1/2"]
[ECO "E11"]
[WhiteElo "2341"]
[BlackElo "2495"]
[Annotator "TA"]
[PlyCount "195"]
[EventDate "2022.09.15"]
[EventType "tourn"]
[EventCountry "KAZ"]
[SourceTitle "playchess.com"]
[Source "ChessBase"]
[SourceQuality "1"]
[TimeControl "40/5400+30:1800+30"]

{[%evp 18,195,7,8,16,12,39,35,29,26,36,27,28,27,28,29,42,15,19,11,31,21,35,31,47,40,49,41,75,46,51,0,43,0,0,0,0,0,0,0,0,0,0,0,0,0,0,-7,0,-70,0,0,0,0,0,-108,-111,-106,-97,-214,-206,-197,-108,-244,-241,-351,-325,-311,-208,-193,-179,-178,-16,-18,-16,-16,-16,-16,-16,-16,-16,-34,-16,-16,-16,-16,-16,-16,-16,-16,-16,-16,-16,-18,-16,-22,-18,-22,-18,-22,-22,-24,-16,-24,-24,-24,-16,-22,-16,-24,-24,-27,-22,-22,-16,-23,-16,-24,-24,-32,-16,-16,-16,-16,-16,-16,-16,-22,-22,-22,-16,-22,-22,-24,-24,-28,-16,-16,-16,-22,-22,-22,-22,-22,-22,-22,-22,-22,-22,-22,-22,-22,-22,-22,-22,-22,-22,-24,-24,-24,-16,-16,-16,-16,-16,-16,-16,-16,-16,-16,-16,-16,-16,-16,-16,-16,-16,-16,0,0]} 1. d4 {[%emt 0:00:06]} Nf6 {[%emt 0:00:11]} 2. c4 {[%emt 0:00:04]} e6 {[%emt 0:00:07]} 3. Nf3 {[%emt 0:00:07]} d5 {[%emt 0:00:08]} 4. g3 {[%emt 0:00:05]} Bb4+ {[%emt 0:01:03]} 5. Bd2 {[%emt 0:00:05]} Be7 {[%emt 0:00:09]} 6. Bg2 {[%emt 0:00:11]} O-O {[%emt 0:00:42]} 7. O-O {[%emt 0:00:03]} c6 {[%emt 0:00:09]} 8. Qc2 {[%emt 0:00:21]} Nbd7 {[%emt 0:02:52] is the new trend.} 9. b3 {[%emt 0:00:21]} b6 {[%emt 0:03:31]} 10. Rd1 {[%emt 0:00:29] BESTDEEP} a5 {[%emt 0:06:29] CPLX 2.3 8 (Bc8-a6) (=8). E11: Bogo-Indian.} 11. Bc3 {[%emt 0:00:27] CPLX 2.3 4 (e2-e3) (=2)} Ne4 {[%emt 0:05:43] CPLX 2.2 27 (Bc8-b7) (=18)} 12. Ne5 {[%emt 0:01:29] BESTDEEP} Nxe5 {[%emt 0:04:11] EASY. White is slightly better.} 13. Bxe4 {[%emt 0:00:19] CPLX 3.7} Ng6 {[%emt 0:02:14] CPLX 3.2} 14. Bg2 {[%emt 0:00:25] CPLX 2.5 9 (Be4-f3) (=3)} f5 {[%emt 0:00:41] CPLX 2.2 1 (Bc8-a6) (=7)} 15. e3 {[%emt 0:01:38] CPLX 2.1 1 (Nb1-d2) (=2)} Ba6 {[%emt 0:07:37] CPLX 2.2} 16. Nd2 {[%emt 0:03:43] EASY} Nh8 {[%emt 0:01:42] [#] BESTDEEP} 17. f3 $146 {[%emt 0:27:37] CPLX 2.2 27 (h2-h4) (=5)} ({Predecessor:} 17. Nf3 Nf7 18. a4 Re8 19. Bb2 Rc8 20. Rac1 Bd6 21. Ne1 Ng5 22. f3 c5 23. dxc5 Bxc5 {½-½ (34) Walczak,P (2457)-Lifanov,V (2442) ICCF email 2013}) 17... Bf6 {[%emt 0:11:17] CPLX 2.1 4 (Nh8-f7) (=5)} 18. Kh1 {[%emt 0:01:53] CPLX 2.2 8 (Bc3-b2) (=5)} Ng6 {[%emt 0:04:27] CPLX 2.2 20 (g7-g6) (=7)} 19. Re1 {[%emt 0:11:20] CPLX 2.2 10 (Bc3-b2) (=6)} Ra7 {[%emt 0:02:38] CPLX 2.2 14 (Ra8-c8) (=7)} 20. Rad1 {[%emt 0:03:07] CPLX 2.2 4 (f3-f4) (=6)} Rd7 {[%emt 0:05:53] CPLX 2.2 16 (Ng6-e7) (=8)} 21. Bb2 {[%emt 0:04:15] CPLX 2.2 7 (f3-f4) (=6)} Ne7 {[%emt 0:05:23] CPLX 2.2 9 (b6-b5) (=8)} 22. f4 {[%emt 0:11:01] CPLX 2.2 8 (c4-c5) (=6)} dxc4 {[%emt 0:08:14] CPLX 2.3 34 (c6-c5) (=10)} 23. bxc4 {[%emt 0:05:29] RECAPT 29 (Nd2xc4) (=8)} c5 {[%emt 0:01:35] CPLX 2.3} 24. Nf3 {[%emt 0:07:50] CPLX 2.6 51 (Bb2-a3) (=11)} ({White should play} 24. Ba3 $14) 24... Qc8 {[%emt 0:06:34] CPLX 2.5 43 (Qd8-c7) (=12)} 25. dxc5 {[%emt 0:07:41] [#] Hoping for Rxd7. MISSDEEP-d4-d5 43 (d4-d5) (=13)} (25. d5 $5) 25... Rxd1 {[%emt 0:00:54] CPLX 3.2} 26. Rxd1 {[%emt 0:00:04] RECAPT} Qxc5 {[%emt 0:01:40] CPLX 2.8} 27. Ne5 {[%emt 0:01:22] BESTDEEP} Rc8 {[%emt 0:01:59] BESTDEEP} 28. Nd7 {[%emt 0:07:10] MISS-Bb2-d4 0 (Bb2-d4) (=11)} Qxc4 {[%emt 0:04:14] CPLX 3.3} 29. Qxc4 {[%emt 0:00:13] RECAPT} Rxc4 {[%emt 0:00:41] RECAPT} 30. Bxf6 {[%emt 0:00:17] MISS-Nd7xf6 0 (Nd7xf6) (=10)} gxf6 {[%emt 0:00:05] RECAPT} 31. Nxf6+ {[%emt 0:00:03] RECAPT} Kg7 {[%emt 0:00:33] CPLX 2.0} 32. Nd7 {[%emt 0:00:56] CPLX 2.2 7 (Nf6-e8) (=9)} Rc2 {[%emt 0:02:05] CPLX 2.0 7 (b6-b5) (=8)} 33. Nxb6 {[%emt 0:01:39] RELBLUND 70 (Kh1-g1) (=12)} (33. Kg1 $11) 33... Rxa2 {[%emt 0:00:56] CPLX 2.2 70 (Rc2-b2) (=11)} (33... Rb2 $1 $15 34. Nd7 Rxa2) 34. h3 $11 {[%emt 0:00:55] BESTDEEP} Bb5 {[%emt 0:01:03] CPLX 2.2 0 (Kg7-f7) (=10)} 35. Rb1 $1 {[%emt 0:02:33] DEEPSTRONG} Ba6 {[%emt 0:02:02] CPLX 2.4 0 (Bb5-d3) (=10)} 36. Nd7 {[%emt 0:00:35] RELBLUND 108 (Rb1-d1) (=14)} (36. Rd1 $11 {keeps the balance.}) 36... a4 $17 {[%emt 0:02:27] CPLX 2.2=>BLUNDERREACT} 37. Nc5 {[%emt 0:00:51][%csl LRa6,LRe6] CPLX 2.2} Bc8 {[%emt 0:00:53] CPLX 2.5} 38. Rb8 {[%emt 0:02:13] CPLX 2.2 117 (Bg2-b7) (=17)} (38. Bb7 $17 {keeps fighting.}) 38... a3 {[%emt 0:01:19] CPLX 2.5 8 (Kg7-f6) (=9)} 39. Ra8 {[%emt 0:00:29] CPLX 2.7 0 (Rb8-b3) (=17)} Rc2 {[%emt 0:00:31] CPLX 2.7 89 (Kg7-f6) (=12)} (39... Kf6 $19 {aiming for ...Rc2.} 40. e4 Rc2 41. e5+ Kg6 42. Rxa3 Rxc5) 40. Ra7 {[%emt 0:00:15] MISSDEEP-Nc5xe6 136 (Nc5xe6) (=21)} (40. Nxe6+ $17 Bxe6 41. Rxa3) 40... Kf6 $19 {[%emt 0:02:50] CPLX 3.2} ({Don't blunder} 40... Rxc5 $2 41. Rxe7+ Kf6 42. Ra7) 41. Nd3 {[%emt 0:12:33] CPLX 3.5 110 (Ra7xa3) (=23)} (41. Rxa3 $142 Rxc5 42. e4) 41... a2 {[%emt 0:08:26][%cal Oc8d7] EASY} 42. g4 {[%emt 0:00:33] BESTDEEP} fxg4 {[%emt 0:06:49] CPLX 4.0 103 (h7-h6) (=14)} 43. hxg4 {[%emt 0:00:17] RECAPT} Rd2 {[%emt 0:00:43] And now ...Rd1+ would win. CPLX 3.8 14 (h7-h6) (=14)} 44. g5+ {[%emt 0:04:58] [#] CPLX 4.1 0 (Bg2-f1) (=21)} Kg7 $2 {[%emt 0:07:44] MISSDEEP-Kf6-f7 162 (Kf6-f7) (=18)} ({And not} 44... Kf5 45. Ne5 Re2 46. Kh2 $17) (44... Kf7 $1 $19 {White must now prevent ...Rd1+.} 45. Bf1 Rd1 46. Rxa2 Rxf1+ 47. Kg2 Rb1) 45. Rxe7+ $11 {[%emt 0:02:36] EASY} Kf8 {[%emt 0:00:10] CPLX 3.5 2 (Kg7-g8) (=18)} 46. Ra7 {[%emt 0:00:10] Threatens to win with Bf1. EASY} Rd1+ {[%emt 0:00:06] EASY} 47. Kh2 {[%emt 0:00:03][%cal Oa7a2] EASY} a1=Q {[%emt 0:00:09] CPLX 3.8} 48. Rxa1 {[%emt 0:00:05] EASY} Rxa1 {[%emt 0:00:01][%mdl 4096] Endgame KRB-KBN. RECAPT} 49. Be4 {[%emt 0:01:45] CPLX 2.3 18 (Kh2-g3) (=19)} Kg7 {[%emt 0:00:44] CPLX 2.4 18 (Ra1-a4) (=16)} 50. Kg3 {[%emt 0:00:04] CPLX 2.4} Ra3 {[%emt 0:01:14] CPLX 2.4 0 (Ra1-g1) (=16)} 51. Kf3 {[%emt 0:01:19] CPLX 2.4 0 (Kg3-f2) (=18)} h6 {[%emt 0:00:32] CPLX 2.5 0 (Ra3-c3) (=15)} 52. gxh6+ {[%emt 0:00:37] CPLX 2.7} Kxh6 {[%emt 0:00:04] RECAPT} 53. Ne5 {[%emt 0:00:54] CPLX 2.3} Kg7 {[%emt 0:00:52] CPLX 2.3 0 (Bc8-a6) (=15)} 54. Nc6 {[%emt 0:03:58] CPLX 2.3 0 (Be4-d3) (=17)} Kf6 {[%emt 0:01:01] CPLX 2.2 0 (Bc8-a6) (=14)} 55. Nd4 {[%emt 0:00:33] MISS-Nc6-e5 2 (Nc6-e5) (=17)} Ba6 {[%emt 0:00:46] CPLX 2.4 2 (Ra3-a4) (=14)} 56. Bc6 {[%emt 0:01:08] CPLX 2.4 6 (Nd4-c6) (=16)} Rc3 {[%emt 0:00:59][%cal Oc3c6] Strongly threatening ...Rxc6! CPLX 2.3 4 (Ra3-a1) (=14)} 57. Be4 {[%emt 0:01:16] CPLX 2.4} Bc4 {[%emt 0:00:20] CPLX 2.4 4 (Rc3-c4) (=14)} 58. Bb7 {[%emt 0:02:21] CPLX 2.3 4 (Nd4-c6) (=16)} Ra3 {[%emt 0:00:46] CPLX 2.3 0 (Rc3-d3) (=13)} 59. Be4 {[%emt 0:00:13] CPLX 2.3} Ra2 {[%emt 0:00:17] CPLX 2.4 8 (Bc4-f1) (=13)} 60. Bb7 {[%emt 0:00:28] CPLX 2.4 8 (Be4-c2) (=15)} Rb2 {[%emt 0:00:26] CPLX 2.4 0 (Ra2-a7) (=13)} 61. Bc6 {[%emt 0:00:54]} Bf1 {[%emt 0:00:18]} 62. Kg3 {[%emt 0:00:06]} Ra2 {[%emt 0:00:48]} 63. Bb7 {[%emt 0:00:28]} Bd3 {[%emt 0:00:24]} 64. Bc6 {[%emt 0:00:21]} Rb2 {[%emt 0:00:29]} 65. Kf3 {[%emt 0:00:20]} Bg6 {[%emt 0:00:19]} 66. Kg3 {[%emt 0:00:51]} Ra2 {[%emt 0:00:37]} 67. Kf3 {[%emt 0:01:44]} Ra3 {[%emt 0:00:46]} 68. Bb7 {[%emt 0:00:11]} e5 {[%emt 0:00:32]} 69. fxe5+ {[%emt 0:00:36]} Kxe5 {[%emt 0:00:02]} 70. Nc6+ {[%emt 0:00:22]} Kf6 {[%emt 0:00:44]} 71. Nd4 {[%emt 0:00:13]} Ra1 {[%emt 0:00:04]} 72. Bc6 {[%emt 0:00:30]} Ke5 {[%emt 0:00:13]} 73. Kg3 {[%emt 0:01:17]} Rf1 {[%emt 0:00:23]} 74. Nf3+ {[%emt 0:00:30]} Kd6 {[%emt 0:00:11]} 75. Bb7 {[%emt 0:00:10]} Rb1 {[%emt 0:00:50]} 76. Bc8 {[%emt 0:00:49]} Kd5 {[%emt 0:00:26]} 77. Kf4 {[%emt 0:02:00]} Rb8 {[%emt 0:00:14]} 78. Bf5 {[%emt 0:00:48]} Bxf5 {[%emt 0:00:26]} 79. Kxf5 {[%emt 0:00:11] KR-KN} Rf8+ {[%emt 0:00:08]} 80. Kg4 {[%emt 0:00:03]} Ke4 {[%emt 0:00:05][%csl LRe3,LRf3]} 81. Ng5+ {[%emt 0:00:20]} Kxe3 {[%emt 0:00:05]} 82. Kg3 {[%emt 0:00:08]} Rf6 {[%emt 0:01:07]} 83. Kg4 {[%emt 0:00:10]} Rf1 {[%emt 0:00:11]} 84. Nh3 {[%emt 0:00:27]} Rf3 {[%emt 0:01:04]} 85. Ng5 {[%emt 0:00:07]} Rf4+ {[%emt 0:00:03]} 86. Kg3 {[%emt 0:00:05]} Ra4 {[%emt 0:00:06]} 87. Nf3 {[%emt 0:00:15]} Ke4 {[%emt 0:00:10] ( -> ...Ra3)} 88. Kg4 {[%emt 0:00:20]} Ra8 {[%emt 0:01:40]} 89. Ng5+ {[%emt 0:00:05] The position is equal.} Ke5 {[%emt 0:00:03]} 90. Nf3+ {[%emt 0:00:04]} Kf6 {[%emt 0:00:03]} 91. Kf4 {[%emt 0:00:14]} Ra4+ {[%emt 0:00:07]} 92. Ke3 {[%emt 0:00:08]} Kf5 {[%emt 0:00:03]} 93. Nd4+ {[%emt 0:00:43]} Ke5 {[%emt 0:00:05]} 94. Nf3+ {[%emt 0:00:01]} Kd5 {[%emt 0:00:06]} 95. Nd2 {[%emt 0:00:48]} Ra2 {[%emt 0:01:30]} 96. Nf3 {[%emt 0:00:09]} Ra3+ {[%emt 0:00:05]} 97. Kf4 {[%emt 0:00:04]} Rxf3+ {[%emt 0:00:03]} 98. Kxf3 {[%emt 0:00:02] White happily takes the draw.  Weighted Error Value: White=0.19 (very precise) /Black=0.15 (very precise)} 1/2-1/2

[Event "FIDE Womens Grand Prix-I 2022-23"]
[Site "Nur-Sultan"]
[Date "2022.09.20"]
[Round "3.6"]
[White "Paehtz, Elisabeth"]
[Black "Zhu, Jiner"]
[Result "1/2-1/2"]
[ECO "A14"]
[WhiteElo "2484"]
[BlackElo "2464"]
[Annotator "TA"]
[PlyCount "61"]
[EventDate "2022.09.15"]
[EventType "tourn"]
[EventCountry "KAZ"]
[SourceTitle "playchess.com"]
[Source "ChessBase"]
[SourceQuality "1"]
[TimeControl "40/5400+30:1800+30"]

{[%evp 20,61,33,0,0,0,7,7,7,8,7,0,0,0,0,0,0,0,0,0,0,0,0,0,0,0,0,0,0,0,0,0,0,0,0,0,0,0,0,0,0,0,0,-60]} 1. d4 {[%emt 0:00:01]} Nf6 {[%emt 0:00:08]} 2. Nf3 {[%emt 0:00:04]} d5 {[%emt 0:00:20]} 3. g3 {[%emt 0:00:05]} e6 {[%emt 0:00:14]} 4. Bg2 {[%emt 0:00:04]} Be7 {[%emt 0:00:16]} 5. c4 {[%emt 0:00:24]} O-O {[%emt 0:01:36]} 6. b3 {[%emt 0:00:29]} c5 {[%emt 0:03:17]} 7. cxd5 {[%emt 0:00:06]} Nxd5 {[%emt 0:03:00]} 8. O-O {[%emt 0:00:23]} Nc6 {[%emt 0:02:44]} 9. Bb2 {[%emt 0:00:50][%cal Bc1b2,Bb2d4,Bd4e3][%mdl 32]} cxd4 {[%emt 0:10:22]} 10. Nxd4 {[%emt 0:00:05]} Nxd4 {[%emt 0:00:23]} 11. Bxd4 {[%emt 0:02:47] MISS-Qd1xd4 33 (Qd1xd4) (=33)} b6 {[%emt 0:00:26] BESTDEEP. The position is equal. A14: English Opening: 1...e6 with b3 by White.} 12. Nc3 {[%emt 0:27:26] CPLX 2.3} Bb7 {[%emt 0:00:19] EASY} 13. Nxd5 {[%emt 0:00:30] CPLX 2.4} Bxd5 {[%emt 0:00:12] [#] RECAPT} 14. Be3 $146 {[%emt 0:01:33] CPLX 2.4 0 (Qd1-d3) (=8)} (14. Qd3 {seems wilder.} Rc8 15. Rfd1 Bxg2 16. Kxg2 Qd5+ 17. Qf3) ({Predecessor:} 14. Bb2 Bxg2 15. Kxg2 Qc7 16. e3 Rfd8 17. Qf3 Rd5 18. Rac1 Qb7 19. Rc4 Rc8 20. Rfc1 Rxc4 21. Rxc4 {1-0 (32) Heimsoth,S (2157)-Du Maire,J (2170) Dresden 2016}) 14... Bxg2 {[%emt 0:01:32] BESTDEEP} 15. Qxd8 {[%emt 0:00:16] CPLX 3.2 7 (Kg1xg2) (=8)} Rfxd8 {[%emt 0:00:15] RECAPT} 16. Kxg2 {[%emt 0:00:04] EASY} Ba3 {[%emt 0:03:11] BESTDEEP} 17. Rad1 {[%emt 0:06:48] CPLX 2.0} Rac8 {[%emt 0:01:46]} 18. Rxd8+ {[%emt 0:01:14] CPLX 2.0} Rxd8 $11 {[%emt 0:00:05][%mdl 4096] Endgame KRB-KRB. RECAPT} 19. Bc1 {[%emt 0:00:10] CPLX 2.0 0 (Rf1-b1) (=4)} Bc5 {[%emt 0:00:59] BESTDEEP} 20. Kf3 {[%emt 0:01:56] BESTDEEP} Kf8 {[%emt 0:01:10] BESTDEEP} 21. Be3 {[%emt 0:00:29] CPLX 2.0 0 (Bc1-f4) (=4)} Bxe3 {[%emt 0:00:34]} 22. Kxe3 {[%emt 0:00:04] KR-KR. RECAPT} Rc8 {[%emt 0:00:07] CPLX 2.0} 23. Rd1 {[%emt 0:03:23] CPLX 2.0} Ke7 {[%emt 0:00:09] CPLX 2.0} 24. Rd4 {[%emt 0:04:46] CPLX 2.0} Rc2 {[%emt 0:01:33]} 25. Ra4 {[%emt 0:02:08] BESTDEEP} a5 {[%emt 0:00:10] CPLX 2.0} 26. b4 {[%emt 0:00:42] BESTDEEP} axb4 {[%emt 0:00:55] BESTDEEP} 27. Rxb4 {[%emt 0:00:03] RECAPT} Rxa2 {[%emt 0:00:06]} 28. Rxb6 {[%emt 0:00:03] EASY} g5 {[%emt 0:00:19]} 29. Rb4 {[%emt 0:00:46] CPLX 2.0 0 (Rb6-b7) (=2)} Kf6 {[%emt 0:00:21]} 30. h4 {[%emt 0:00:08]} Ra3+ {[%emt 0:00:16]} 31. Ke4 {[%emt 0:00:27] A balanced but interesting game.  Weighted Error Value: White=0.03 (flawless) /Black=0.00 (flawless)} (31. Kd2 $11) 1/2-1/2